Cogmind - Beta 17 @@@ ROGUE MODE // 2026.07.26 @ 12:50:13 Player: Akl Result: Destroyed by S-27 Virus with Autogun Performance ------------- Evolutions (5) 2500 Regions Visited (8) 1600 Robots Destroyed (30) 150 Value Destroyed (937) 937 Prototype IDs (4) 80 Alien Tech Used (0) 0 Bonus (598) 598 TOTAL SCORE: 5865 Bonus ------- High Alert Combat Kills 24 Follower Combat Kills 574 Cogmind --------- Core Integrity 0/1000 Matter 165/300 Energy 99/100 System Corruption 0% Temperature Cool (0) Movement Core (50) Location -5/Factory Parts ------- > --- POWER (1) -------- (None) > --- PROPULSION (6) --- (None) > --- UTILITY (6) ------ Terrain Scan Processor Improved Targeting Computer Target Analyzer Target Analyzer Improved Target Analyzer > --- WEAPON (4) ------- (None) > --- INVENTORY (5) ---- Huge Storage Unit Matter Filter Peak State ------------ > --- POWER ------------ Neutrino Core > --- PROPULSION ------- Flexi-carbon Leg Improved VTOL Module Field Propulsion Drive > --- UTILITY ---------- Terrain Scan Processor Improved Targeting Computer Target Analyzer Target Analyzer Target Analyzer Improved Target Analyzer > --- WEAPON ----------- Thermic Laser Thermic Laser Variable Charge Gun Remote Datajack > --- INVENTORY -------- Huge Storage Unit Matter Filter [Rating: 59] Favorites ----------- Power Light Angular Momentum Engine Engine Light Angular Momentum Engine Power Core Light Nuclear Core Propulsion Improved VTOL Module Leg Flexi-carbon Leg Wheel Armored Huge Wheel Flight Unit Improved VTOL Module Utility Small Storage Unit Device Structural Scanner Storage Small Storage Unit Processor Visual Processing Unit Hackware System Shield Protection Improved Medium Armor Plating Weapon Beam Rifle Energy Gun Beam Rifle Ballistic Gun Hypervelocity Gauss Rifle Ballistic Cannon Light Cannon Special Weapon Remote Datajack Special Melee Weapon Improved Datajack Build | -11 -10 -9 -9 -8 -8 -7 -6 -5 ------- Run | Yrd Mat Mat Min Mat Sto Fac Fac Fac Slots Evolved 10 | . . 2 . 2 . 2 2 2 Power . | . . . . . . . . . Propulsion 4 | . . 2 . . . 1 1 . Utility 4 | . . . . 1 . 1 1 1 Weapon 2 | . . . . 1 . . . 1 Parts Attached 74 | 4 4 7 4 5 12 4 24 10 Power 8 | . . 1 . 1 1 1 3 1 Engine 4 | . . 1 . 1 . . 2 . Core 4 | . . . . . 1 1 1 1 Reactor . | . . . . . . . . . Propulsion 26 | 2 2 3 . 2 4 2 10 1 Treads . | . . . . . . . . . Leg 12 | 2 2 1 . . . . 7 . Wheel 2 | . . . . 2 . . . . Hover . | . . . . . . . . . Flight 12 | . . 2 . . 4 2 3 1 Utility 20 | . . 1 2 2 4 . 7 4 Device 6 | . . . . . 3 . 3 . Storage 3 | . . 1 2 . . . . . Processor 7 | . . . . . 1 . 2 4 Hackware 2 | . . . . . . . 2 . Protection 2 | . . . . 2 . . . . Artifact . | . . . . . . . . . Weapon 20 | 2 2 2 2 . 3 1 4 4 Energy Gun 6 | . . . . . 3 . . 3 Energy Cannon . | . . . . . . . . . Ballistic Gun 9 | 2 . 2 1 . . 1 3 . Ballistic Cannon 1 | . 1 . . . . . . . Launcher . | . . . . . . . . . Special Weapon 3 | . 1 . . . . . 1 1 Impact Weapon . | . . . . . . . . . Slashing Weapon . | . . . . . . . . . Piercing Weapon . | . . . . . . . . . Special Melee Weapon 1 | . . . 1 . . . . . Unidentified Prototypes 2 | . . 1 . . 1 . . . Parts Lost 49 | . . 8 . . 3 2 24 12 Power 5 | . . 1 . . 1 1 1 1 Propulsion 20 | . . 5 . . . . 9 6 Utility 11 | . . . . . 1 . 9 1 Weapon 13 | . . 2 . . 1 1 5 4 Highest Loss Streak 15 | . . 8 . . 2 1 15 9 To Critical Strikes 2 | . . . . . . . 1 1 Average Backups 4 | 1 4 5 5 4 7 6 4 1 Power . | . 2 1 1 . . 1 . . Propulsion . | . . . . . 1 . . . Utility 1 | . 1 . . 1 2 2 2 1 Weapon 1 | . 1 1 1 1 1 1 . . Tool/Special . | . . . . . . . . . Unused Backups 7 | . . 1 1 . . 1 2 2 Power 1 | . . . . . . . 1 . Propulsion . | . . . . . . . . . Utility 3 | . . . . . . 1 . 2 Weapon 2 | . . 1 . . . . 1 . Tool/Special 1 | . . . 1 . . . . . Average Slot Usage (%) 65 | . 54 59 10 40 82 96 83 55 Engine 1 | . . . . 4 5 . 2 . Core 1 | . . . . . 3 5 1 1 Leg 8 | . 28 20 . . . . 8 7 Flight 19 | . . 8 . . 33 38 28 17 Device 6 | . . . . . 5 14 13 . Storage 4 | . . 9 6 4 10 7 2 . Processor 5 | . . . . . 1 7 8 19 Protection 1 | . . . . 9 6 . . . Energy Gun 4 | . . . . . 8 15 4 6 Ballistic Gun 8 | . 21 18 3 9 5 6 8 . Peak Build Rating 59 | 4 4 15 7 30 33 37 57 59 Average Rating 27 | 2 3 11 2 21 28 35 44 42 On Entrance 15 | . 4 4 2 4 30 33 33 30 Avg Prop Armor Cover (%) 17 | 19 21 5 . . . 1 18 23 Naked Turns 1 | . . . 1 . . . . . Heaviest Build 34 | 4 5 14 5 27 27 21 34 30 Greatest Support 56 | 3 20 30 3 56 56 20 40 23 Greatest Overweight (x) 5 | 1 1 2 1 . 5 1 1 2 Average Overweight (x) . | . . . . . . . . . Largest Inventory Capacity 20 | 5 5 8 20 8 8 8 8 5 Average Capacity 6 | 5 5 7 7 6 8 8 6 5 Most Carried 8 | 3 5 7 6 5 8 8 8 2 Average Carried 4 | 1 4 5 4 4 7 6 4 1 Final Capacity 8 | 5 5 8 5 8 8 8 5 5 Final Carried 8 | 3 5 5 5 3 8 6 1 2 Class Distribution -------------------- 57% | Mutant 24% | Commander-Skirmisher 7% | Commander-Sprinter Dominant Class ---------------- Mutant | -10/Materials Mutant | -9/Materials Mutant | -9/Mines Mutant | -8/Materials Mutant | -8/Storage Commander-Skirmisher | -7/Factory Commander-Skirmisher | -6/Factory Mutant | -5/Factory Resources | -11 -10 -9 -9 -8 -8 -7 -6 -5 ----------- Run | Yrd Mat Mat Min Mat Sto Fac Fac Fac Matter Collected 1486 | 138 154 159 73 . 528 58 376 . Remotely . | . . . . . . . . . Salvage Created 1176 | . 130 159 . . 386 179 322 . Parts 64 | . 4 10 . . 19 10 21 . Haulers Intercepted . | . . . . . . . . . Recyclers Shooed . | . . . . . . . . . Parts Field Recycled . | . . . . . . . . . Retrieved Matter . | . . . . . . . . . Parts Self-Destructed . | . . . . . . . . . Prevented . | . . . . . . . . . Parts Restored . | . . . . . . . . . Kills | -11 -10 -9 -9 -8 -8 -7 -6 -5 ------- Run | Yrd Mat Mat Min Mat Sto Fac Fac Fac Combat Hostiles Destroyed 26 | . 4 6 . . 7 4 5 . Guns 26 | . 4 6 . . 7 4 5 . Classes Destroyed 7 | . 1 2 . . 2 . 2 . Worker 2 | . . . . . 2 . . . Swarmer 9 | . . 4 . . 2 3 . . Grunt 12 | . 4 1 . . 4 1 2 . Brawler 1 | . . 1 . . . . . . Sentry 4 | . . . . . 2 1 1 . Hunter 1 | . . . . . . . 1 . Programmer 1 | . . . . . . . 1 . Best Kill Streak 4 | . 2 4 . . 3 3 2 . Combat Bots Only 4 | . 2 4 . . 2 3 2 . Max Kills in Single Turn 1 | . 1 1 . . 1 1 1 . Gunslinging . | . . . . . . . . . Exploded . | . . . . . . . . . Melee . | . . . . . . . . . Uniques/NPCs Destroyed . | . . . . . . . . . Combat | -11 -10 -9 -9 -8 -8 -7 -6 -5 -------- Run | Yrd Mat Mat Min Mat Sto Fac Fac Fac Hostile Shots Fired 798 | . 37 125 . . 88 39 395 114 Missed 337 | . 11 49 . . 33 15 196 33 Hits 461 | . 26 76 . . 55 24 199 81 Melee 4 | . . 4 . . . . . . Projectile 457 | . 26 72 . . 55 24 199 81 Critical Strikes 11 | . . 2 . . 3 . 3 3 Part Disruptions 1 | . . . . . . . 1 . Damage Taken 6617 | . 326 997 . . 882 268 2384 1760 Core 2179 | . 57 272 . . 218 79 553 1000 Absorbed by Shields 21 | . . . . . 21 . . . Core Remaining (%) 65 | 100 77 . 32 . 60 88 34 . Volleys Fired 139 | . 25 21 . . 44 12 30 7 Largest 3 | . 2 2 . . 3 3 3 3 Hottest 245 | . 50 50 . . 146 146 122 245 Shots Fired 259 | . 50 42 1 . 70 19 60 17 Gun 251 | . 43 42 1 . 70 19 60 16 Cannon 7 | . 7 . . . . . . . Launcher . | . . . . . . . . . Special 1 | . . . . . . . . 1 Kinetic 165 | . 50 42 1 . 26 4 42 . Thermal 93 | . . . . . 44 15 18 16 Explosive . | . . . . . . . . . Electromagnetic . | . . . . . . . . . Robot Hit Streak 14 | . 11 14 . . 5 4 10 7 Robot Miss Streak 5 | . 3 2 . . 5 4 2 1 Penetration Max . | . . . . . . . . . Secondary Targets 2 | . . . . . 1 . 1 . Max Gunslinging Chain 1 | . . . . . 1 . 1 . Shots Hit Robots 166 | . 39 28 . . 37 10 37 15 Core Hits 60 | . 9 9 . . 20 7 14 1 Critical Kills 1 | . . . . . . . 1 . Critical Parts Destroyed 3 | . . . . . . . 3 . Critical Strikes 10 | . . . . . 5 . 5 . Burn 5 | . . . . . 5 . . . Destroy 5 | . . . . . . . 5 . Melee Attacks . | . . . . . . . . . Impact . | . . . . . . . . . Slashing . | . . . . . . . . . Piercing . | . . . . . . . . . Sneak Attacks . | . . . . . . . . . Combat Hostiles . | . . . . . . . . . Follow-up Attacks . | . . . . . . . . . Damage Inflicted 2658 | . 503 493 . . 778 204 413 267 Guns 2491 | . 381 493 . . 733 204 413 267 Cannons 122 | . 122 . . . . . . . Explosions . | . . . . . . . . . Melee . | . . . . . . . . . Ramming 45 | . . . . . 45 . . . Kinetic 1567 | . 503 493 . . 266 74 231 . Thermal 1046 | . . . . . 467 130 182 267 Explosive . | . . . . . . . . . Electromagnetic . | . . . . . . . . . Impact . | . . . . . . . . . Slashing . | . . . . . . . . . Piercing . | . . . . . . . . . Highest Corruption 7 | . . 7 7 . 2 . 2 . Average Corruption 3 | . . 6 7 . 2 . 1 . Corruption Purged . | . . . . . . . . . Corruption Blocked . | . . . . . . . . . Effects 24 | . . 3 8 . 4 . 9 . Message Errors 5 | . . . 2 . 1 . 2 . Matter Fused 3 | . . . 2 . . . 1 . Heat Flow Errors 5 | . . . 2 . 1 . 2 . Energy Discharges 5 | . . . 1 . 1 . 3 . Data Loss (minor) 4 | . . 2 . . 1 . 1 . Data Loss (major) 1 | . . 1 . . . . . . Misfires 1 | . . . 1 . . . . . Overload Shots . | . . . . . . . . . Overflow Damage . | . . . . . . . . . Projectiles . | . . . . . . . . . Explosions . | . . . . . . . . . Melee . | . . . . . . . . . Knockbacks 4 | . 4 . . . . . . . Impact . | . . . . . . . . . Kinetic 2 | . 2 . . . . . . . Secondary 2 | . 2 . . . . . . . Self-Inflicted Damage 21 | . . . . . 21 . . . Shots . | . . . . . . . . . Rammed 4 | . . . . . 4 . . . Targets Rammed 4 | . . . . . 4 . . . Kicked . | . . . . . . . . . Crushed . | . . . . . . . . . Highest Temperature 702 | . . 15 134 . 570 68 271 702 Average Temperature 140 | . . 6 70 . 139 36 61 389 Received Heat Transfer 1391 | . 183 273 . . 341 36 432 126 Effects 21 | . . . . . 9 . . 12 Shutdowns 3 | . . . . . 1 . . 2 Energy Bleed 3 | . . . . . 2 . . 1 Matter Decay 3 | . . . . . 1 . . 2 Short Circuit 2 | . . . . . . . . 2 Damage (minor) 1 | . . . . . 1 . . . Damage (major) 6 | . . . . . 3 . . 3 Damage (core) 3 | . . . . . 1 . . 2 Siege Activations . | . . . . . . . . . Martial Activations . | . . . . . . . . . Shielding Activations . | . . . . . . . . . Robots Disrupted . | . . . . . . . . . Combat Hostiles . | . . . . . . . . . Robots Corrupted . | . . . . . . . . . Combat Hostiles . | . . . . . . . . . Parts Fried . | . . . . . . . . . Impact Corruptions . | . . . . . . . . . Robots Melted . | . . . . . . . . . Combat Hostiles . | . . . . . . . . . Parts Melted 4 | . . . . . . 2 1 1 Heat Transferred 2979 | . . . . . 1554 333 444 648 Parts Sabotaged . | . . . . . . . . . Parts Stolen . | . . . . . . . . . Parts Stripped . | . . . . . . . . . Power Chain Reactions . | . . . . . . . . . Alert | -11 -10 -9 -9 -8 -8 -7 -6 -5 ------- Run | Yrd Mat Mat Min Mat Sto Fac Fac Fac Maximum Alert Level 2 | . . . . . 2 1 . . Low Security (%) 87 | 100 100 100 100 100 63 . 100 100 Level 1 10 | . . . . . 23 100 . . Level 2 1 | . . . . . 13 . . . Level 3 . | . . . . . . . . . Level 4 . | . . . . . . . . . Level 5 . | . . . . . . . . . High Security . | . . . . . . . . . Max Security . | . . . . . . . . . Peak Influence 621 | . 60 81 1 . 621 399 177 44 Initial 278 | . . 17 1 . . 278 177 44 Average 84 | . 26 38 . . 196 347 71 10 Influence Increases 1908 | . 152 147 . . 881 206 507 15 Destroy 0b10 Robot/C 900 | . 80 120 . . 440 100 160 . Destroy 0b10 Robot/NC 15 | . . . . . 15 . . . Destroy Leader 222 | . 20 20 . . 122 20 40 . Allied During Kill 409 | . . . . . 267 71 71 . Successful Hack 42 | . 5 6 . . 21 . 10 . Disable Machine 15 | . . . . . . . 15 . Destroy Structure 5 | . 2 1 . . 1 . 1 . Partial Spotted 15 | . . . . . 15 . . . Lose Combat Pursuer 285 | . 45 . . . . 15 210 15 Influence Decreases 1908 | . 110 183 6 . 268 455 781 105 Entered New Map 598 | . . 25 5 . . 335 187 46 Time Decay 893 | . 110 88 1 . 188 100 347 59 Lost Part 287 | . . 70 . . 30 20 167 . Lost Ally 130 | . . . . . 50 . 80 . Squads Dispatched 12 | . 2 . . . 3 . 6 1 Investigation 5 | . 2 . . . 1 . 1 1 Extermination 2 | . . . . . . . 2 . Reinforcement 4 | . . . . . 1 . 3 . Assault . | . . . . . . . . . Garrison 1 | . . . . . 1 . . . Intercept . | . . . . . . . . . Searches Triggered . | . . . . . . . . . Construction Impeded . | . . . . . . . . . Haulers Reinforced 2 | . . . . . . . 2 . Active Scanning Responses . | . . . . . . . . . Cargo Convoy Interrupts . | . . . . . . . . . Stealth | -11 -10 -9 -9 -8 -8 -7 -6 -5 --------- Run | Yrd Mat Mat Min Mat Sto Fac Fac Fac Distress Signals 8 | . . 1 . . 4 . 2 1 Communications Jammed . | . . . . . . . . . Distress Signals . | . . . . . . . . . Times Spotted 93 | . 7 12 . . 26 6 29 13 Peak Tracking Total 11 | . 4 7 . . 7 4 8 11 Tactical Retreats 10 | . 1 . . . . 1 7 1 Traps | -11 -10 -9 -9 -8 -8 -7 -6 -5 ------- Run | Yrd Mat Mat Min Mat Sto Fac Fac Fac Traps Triggered 6 | . 2 . . . 2 . 2 . Indirectly . | . . . . . . . . . Trap Hack Attempts . | . . . . . . . . . Triggered . | . . . . . . . . . Disarmed . | . . . . . . . . . Reprogrammed . | . . . . . . . . . Reused . | . . . . . . . . . Traps Extracted . | . . . . . . . . . Installed . | . . . . . . . . . Triggered . | . . . . . . . . . Machines | -11 -10 -9 -9 -8 -8 -7 -6 -5 ---------- Run | Yrd Mat Mat Min Mat Sto Fac Fac Fac Machines Disabled 1 | . . . . . . . 1 . Max in Single Turn 1 | . . . . . . . 1 . Machines Repaired . | . . . . . . . . . Machines Dismantled . | . . . . . . . . . Machines Sabotaged . | . . . . . . . . . Overloaded Fab Kills . | . . . . . . . . . Hacking | -11 -10 -9 -9 -8 -8 -7 -6 -5 --------- Run | Yrd Mat Mat Min Mat Sto Fac Fac Fac Machines Accessed 17 | . 2 2 . . 6 1 5 1 Terminals 15 | . 2 2 . . 6 1 3 1 Fabricators 1 | . . . . . . . 1 . Repair Stations . | . . . . . . . . . Recycling Units . | . . . . . . . . . Scanalyzers . | . . . . . . . . . Garrison Access 1 | . . . . . . . 1 . Total Hacks 51 | . 5 5 . . 23 1 12 5 Successful 23 | . 1 3 . . 16 . 3 . Failed 28 | . 4 2 . . 7 1 9 5 Catastrophic 8 | . . . . . 1 1 4 2 Database Lockouts . | . . . . . . . . . Manual 27 | . 5 3 . . 4 1 9 5 Terminals 48 | . 5 5 . . 23 1 9 5 Fabricators 2 | . . . . . . . 2 . Repair Stations . | . . . . . . . . . Recycling Units . | . . . . . . . . . Scanalyzers . | . . . . . . . . . Garrison Access 1 | . . . . . . . 1 . Terminal Hacks 18 | . . 3 . . 14 . 1 . Record 6 | . . . . . 5 . 1 . Prototype ID Bank 1 | . . 1 . . . . . . Open Door 2 | . . . . . 2 . . . Terminal Index 1 | . . . . . 1 . . . Alert Level 2 | . . 1 . . 1 . . . Locate Traps 1 | . . . . . 1 . . . Dispatch Records 1 | . . . . . 1 . . . Maintenance Status 1 | . . . . . 1 . . . Hauler Manifests 1 | . . . . . 1 . . . Zone Layout 2 | . . 1 . . 1 . . . Fabricator Hacks . | . . . . . . . . . Repair Station Hacks . | . . . . . . . . . Recycling Unit Hacks . | . . . . . . . . . Scanalyzer . | . . . . . . . . . Garrison Access Hacks . | . . . . . . . . . Unauthorized Hacks 5 | . 1 . . . 2 . 2 . Terminals 5 | . 1 . . . 2 . 2 . Assimilate 1 | . . . . . 1 . . . Botnet 4 | . 1 . . . 1 . 2 . Fabricators . | . . . . . . . . . Repair Stations . | . . . . . . . . . Recycling Units . | . . . . . . . . . Scanalyzers . | . . . . . . . . . Garrison Access . | . . . . . . . . . Data Cores Recovered . | . . . . . . . . . Used . | . . . . . . . . . Hacking Detections 16 | . 2 2 . . 5 1 5 1 Full Trace Events 4 | . . . . . 2 . 1 1 Feedback Events . | . . . . . . . . . Feedback Blocked . | . . . . . . . . . Robot Schematics Acquired . | . . . . . . . . . Robots Built . | . . . . . . . . . Authchips . | . . . . . . . . . Time . | . . . . . . . . . Total Robot Build Rating . | . . . . . . . . . Part Schematics Acquired . | . . . . . . . . . Parts Built . | . . . . . . . . . Authchips . | . . . . . . . . . Time . | . . . . . . . . . Total Part Build Rating . | . . . . . . . . . Part Studies Acquired . | . . . . . . . . . Parts Repaired . | . . . . . . . . . Time . | . . . . . . . . . Parts Recycled . | . . . . . . . . . Recycled Matter . | . . . . . . . . . Retrieved Matter . | . . . . . . . . . Retrieved Components . | . . . . . . . . . Parts Scanalyzed . | . . . . . . . . . Part Schematics Acquired . | . . . . . . . . . Parts Damaged . | . . . . . . . . . Bothacking | -11 -10 -9 -9 -8 -8 -7 -6 -5 ------------ Run | Yrd Mat Mat Min Mat Sto Fac Fac Fac Used RIF Installer . | . . . . . . . . . Robots Hacked 1 | . . . . . . . . 1 Non-combat . | . . . . . . . . . Combat 1 | . . . . . . . . 1 Robot Hacks Applied 1 | . . . . . . . . 1 parse_system 1 | . . . . . . . . 1 Relay Couplers Released . | . . . . . . . . . Fabnet Peak Effective % . | . . . . . . . . . Robots Rewired . | . . . . . . . . . Allies Hacked . | . . . . . . . . . Hacks Repelled . | . . . . . . . . . Allies | -11 -10 -9 -9 -8 -8 -7 -6 -5 -------- Run | Yrd Mat Mat Min Mat Sto Fac Fac Fac Total Allies 14 | . . . 3 . 11 . . . Largest Group 12 | . . . 3 3 12 9 7 . Highest-Rated Group 199 | . . . 40 40 199 157 125 . Highest-Rated Ally 29 | . . . 16 16 29 29 29 . Total Orders . | . . . . . . . . . Ally Attacks 162 | . . . . . 116 18 28 . Total Damage 1771 | . . . . . 1292 157 322 . Kills 21 | . . . . . 16 2 3 . Allies Corrupted . | . . . . . . . . . Allies Melted . | . . . . . . . . . Intel | -11 -10 -9 -9 -8 -8 -7 -6 -5 ------- Run | Yrd Mat Mat Min Mat Sto Fac Fac Fac Active Infowar (turns) 1190 | . . . . . 235 202 753 . Optics 1047 | . . . . . 92 202 753 . Terrain 143 | . . . . . . . 143 . Structural 1069 | . . . . . 208 199 662 . Traps 477 | . . . . . . . 477 . Robot Analysis Total . | . . . . . . . . . Derelict Logs Recovered 3 | . . . 3 . . . . . Drone Launches . | . . . . . . . . . Drone Recoveries . | . . . . . . . . . Exploration | -11 -10 -9 -9 -8 -8 -7 -6 -5 ------------- Run | Yrd Mat Mat Min Mat Sto Fac Fac Fac Turns Passed 2790 | 40 309 234 366 31 411 202 887 310 Spaces Moved 2717 | 33 238 133 441 29 343 159 1022 319 Core 677 | 33 157 15 441 11 . . . 20 Treads . | . . . . . . . . . Legs 209 | . 81 117 . . . . 11 . Wheels 25 | . . . . 18 7 . . . Hover . | . . . . . . . . . Flight 1806 | . . 1 . . 336 159 1011 299 Fastest Speed 23 | 50 50 100 50 50 26 26 23 39 Average Speed 74 | 89 89 123 76 81 58 75 72 60 Slowest Speed 395 | 100 120 220 100 100 395 96 190 197 Overloaded Moves . | . . . . . . . . . Propulsion Burnouts . | . . . . . . . . . Robots Hopped 7 | . . . . . 4 . 3 . Potential Cave-ins . | . . . . . . . . . Cave-ins Triggered . | . . . . . . . . . Exploration Rate (%) 31 | 3 38 20 98 3 70 6 37 9 Regions Visited 8 Branch Regions 2 Pre-discovered Areas 2 | . . . 2 . . . . . Known Exits Taken 1 | . . . . . 1 . . . Unknown Exits Taken 7 | 1 1 1 1 1 . 1 1 . Scrap Searched 2 | . . . 2 . . . . . Spaces Dug . | . . . . . . . . . Terrain Destroyed . | . . . . . . . . . Melee . | . . . . . . . . . Projectile . | . . . . . . . . . AOE . | . . . . . . . . . Terrain Rammed . | . . . . . . . . . Walls Destroyed . | . . . . . . . . . Machines Disabled . | . . . . . . . . . Actions | -11 -10 -9 -9 -8 -8 -7 -6 -5 --------- Run | Yrd Mat Mat Min Mat Sto Fac Fac Fac Total 3240 | 43 283 177 470 34 491 223 1102 417 Wait 212 | . 8 7 22 . 42 42 11 80 Move 2696 | 32 237 132 440 28 335 158 1015 319 Hop 6 | . . . . . 3 . 3 . Pick Up 35 | 7 2 6 . . 11 3 5 1 Fast Attach 48 | . 1 3 2 4 7 . 21 10 Attach 26 | 4 . 3 2 2 5 3 7 . Detach 7 | . 1 . 3 . 2 . 1 . Swap 14 | . 6 1 . . 2 2 3 . Drop 23 | . 3 4 1 . 6 3 6 . Fire 139 | . 25 21 . . 44 12 30 7 Melee . | . . . . . . . . . Ram 4 | . . . . . 4 . . . Kick . | . . . . . . . . . Crush . | . . . . . . . . . Escape Stasis 27 | . . . . . 27 . . . Rewire 3 | . . . . . 3 . . . Trap . | . . . . . . . . . Miscellaneous . | . . . . . . . . . Route ------- -11/Scrapyard -10/Materials -9/Materials -9/Mines (discovered 3 exits: [*Mat x2] / [*Zio]) -8/Materials (discovered 2 exits: Fac / *Sto) -8/Storage (discovered 2 exits: *Fac / [Rec]) -7/Factory -6/Factory -5/Factory History --------- Turn | Location | Event 9 | -11/Scrapyard | Discovered new exit (range 16) 41 | -11/Scrapyard | Entered Materials 272 | -10/Materials | Discovered new exit (range 15) 302 | -10/Materials | Build established: Mutant 350 | -10/Materials | Entered another Materials area 350 | -9/Materials | Evolved 2 slots: Propulsion x2 570 | -9/Materials | Discovered new exit (range 14) 573 | -9/Materials | Core integrity fell below 50% 584 | -9/Materials | Entered Mines 592 | -9/Mines | Assisted by bots powering up and referring to "LRC-V3" 601 | -9/Mines | Lost 8 parts (1p5n2w) 632 | -9/Mines | A Derelict revealed a hidden shortcut to a safe place 643 | -9/Mines | Learned location of 1 exit from Materials 843 | -9/Mines | Learned location of Zion (-7) 847 | -9/Mines | A weapon hastily lodged in a ceiling crevice suddenly fell to the ground 867 | -9/Mines | Discovered new exit (range 7) 892 | -9/Mines | Found a hidden stash of uninstalled traps 907 | -9/Mines | Discovered new exit (range 9) 950 | -9/Mines | Entered Materials 950 | -8/Materials | Accompanied by 3 allies 950 | -8/Materials | Evolved 2 slots: Utility x1, Weapon x1 951 | -8/Materials | Identified exit to Factory 954 | -8/Materials | Discovered new exit (range 15) 981 | -8/Materials | Entered Storage 981 | -8/Storage | Accompanied by 2 allies 1175 | -8/Storage | Discovered new exit (range 9) 1179 | -8/Storage | Assisted by bots powering up and referring to "LRC-V3" 1351 | -8/Storage | Garrison activated, responded to threat 1370 | -8/Storage | Discovered exit to Factory (range 15) 1392 | -8/Storage | Entered Factory 1392 | -7/Factory | Accompanied by 9 allies 1392 | -7/Factory | Evolved 2 slots: Propulsion x1, Utility x1 1557 | -7/Factory | Discovered new exit (range 18) 1594 | -7/Factory | Entered another Factory area 1594 | -6/Factory | Accompanied by 7 allies 1594 | -6/Factory | Evolved 2 slots: Propulsion x1, Utility x1 1890 | -6/Factory | Build established: Commander-Skirmisher 2233 | -6/Factory | Lost 5 allies 2241 | -6/Factory | Lost 15 parts (1p7n4u3w) 2373 | -6/Factory | Core integrity fell below 50% 2388 | -6/Factory | Lost 3 parts (1n2u) 2474 | -6/Factory | Discovered new exit (range 15) 2481 | -6/Factory | Entered another Factory area 2481 | -5/Factory | Evolved 2 slots: Utility x1, Weapon x1 2665 | -5/Factory | Build established: Mutant 2716 | -5/Factory | Lost 3 parts (3n) 2749 | -5/Factory | Core integrity fell below 50% 2783 | -5/Factory | Core integrity fell below 20% 2791 | -5/Factory | Destroyed by S-27 Virus with Autogun Last Messages --------------- 02752_ Slug penetrates Fusion Modulator. 02755_ Overheating: Energy bleed (-53). 02755_ K-01 Serf collects debris. 02757_ Fusion Modulator collapses. 02757_ Fusion Modulator explodes. 02757_ Overheating: Matter decay (-16). 02757_ K-01 Serf destroyed. 02758_ Penetrated by Slug. 02758_ Neutrino Core destroyed. 02761_ K-01 Serf cleans the Construction Platform. 02762_ O-24 Administrator: "IFF HANDSHAKE FAILED. SECURING TERMINAL." 02763_ Connecting with Terminal... 02763_ Current location identified: Factory 02763_ ALERT: Suspicious activity at Terminal F003. Dispatching Investigation squad. 02771_ W-25 Informer sends out distress signal. 02781_ Field Propulsion Drive destroyed. 02782_ Target Analyzer destroyed. Map ----- +----------------------------------------------------+ | ?????????????????????????????????????????????????? | | ?????????????????????????????????????????????????? | | ?????????????????????????????????????????????????? | | ?????????????????????????????????????????????????? | | ?????????????????????????????????????????????????? | | ?????????????????????????????????????????????????? | | ?????????????????????????????????????????????????? | | ?????????????????????????????????????????????????? | | ?????????????????????????????????????????????????? | | ?????????????????????????????????????????????????? | | ???????????????????????? ???????????????????????? | | ???????????????????????? ???????????????????????? | | ???????????????????????? ???????????????????????? | | ???????????????????????? ???????????????????????? | | ???????????????????????? ???????????????????????? | | ???????????????????????? ???????????????????????? | | ???????????????????????? ???????????????????????? | | ???????????????????????? #??????????????????????? | | ????????????????????????# #??????????????????????? | | ????????????????????????# #??????????????????????? | | ????????????????????????# #??????????????????????? | | ????????????????????????# #??????????????????????? | | ????????????????????????# #??????????????????????? | | ????????????????????????# #??????????????????????? | | ????????????????????????# #??????????????????????? | | ????????????????????????#@#??????????????????????? | | ????????????????????????# #??????????????????????? | | ????????????????????????# #??????????????????????? | | ????????########????????# #??????????????????????? | | ????????# #????????# #?????????#????????????? | | ????????# """" #???????## ######### #????????????? | | +#####??# """" #???????# #????????????? | | ?# """" #???????# #????????????? | | " !! ?# """" #???????# +????????????? | | " !! *# #???????# """ #????????????? | | " #+##+########### """ +????????????? | | T + #? # s """ #????????????? | | " """ # #?? # #????????????? | | " """ # #?? """" # """ #????????????? | | " """?+ #? """" # """ #????????????? | | ? ?#### #? """" # s """ #????????????? | | ??# ##?????# #? """" + #????????????? | | ??##???????# # # """ #????????????? | | ???????????# #! # """ #????????????? | | ?????????### ########### """ ??????????????? | | ?????????# ^ ! #????????????? | | ?????????# """ +????????????? | | ?????????# "" """" """" """ #????????????? | | ?????????# "" """" """" """???????????????? | | ?????????# "T """" """" ??????????????? | +----------------------------------------------------+ Best States ------------- Heat Dissipation 51 Energy Generation 19 Energy Capacity 315 Matter Stores 300 Matter Capacity 300 Sight Range 18 Terrain Scan Range 20 Terrain Scan Density 85 Armor Coverage 450 Evasion (%) 65 Targeting Accuracy 6 Target Analysis 8 Offensive Hacking 10 Defensive Hacking 10 Item Schematics ----------------- None Robot Schematics ------------------ None Fabricated ------------ Nothing Repaired ---------- Nothing Studied --------- None Alien Tech Used ----------------- None Achievements -------------- None Challenges ------------ None Game ------ Seed GuidedBraceBoomstick Manual? 0 Play Time 00:42:12 Cumulative 46.8 hours Start 2026.07.26 @ 12:08:16 End 2026.07.26 @ 12:50:13 Sessions 1 Manual Loads 0 Difficulty Rogue Special Mode None Game No. 81 Rogue 81 Adventurer 0 Explorer 0 Win Type - Total 0 Types 0/0/0/0/0/0/0/0/0/0 Lore% 28 Gallery% 33 Achievement% 27 Wizard Run 0 Options --------- Layout 1 ASCII 0 Keyboard 0 Movement Numpad Keybinds 0 Fullscreen 0 Font 16/CogWide Map View 50x35 Zoom Use 0% Tactical HUD 1 Map Filters NONE Filters NONE Steam 1 RUN: 09bcf987-d570-4f0f-9a21-bdf4393728e2